fUSD/lending_fUSD_20260321
["ID","MTS","AMOUNT","RATE_DAILY","PERIOD"]
[408668109,1774099833206,-516.47340423,0.00015199,2]
[408668110,1774099833215,-500.0,0.00015199,2]
[408668111,1774099833224,-250.0,0.00015199,2]
[408668112,1774099833234,-500.0,0.00015199,2]
[408668113,1774099833243,-250.0,0.00015199,2]
[408668114,1774099833252,-250.0,0.00015199,2]
[408668115,1774099833262,-250.0,0.00015199,2]
[408668116,1774099833271,-250.0,0.00015199,2]
[408668117,1774099833281,-260.83847575,0.00015199,2]
[408668118,1774099833290,-250.0,0.00015199,2]
[408668119,1774099833301,-250.0,0.00015199,2]
[408668120,1774099833310,-250.0,0.00015199,2]
[408668121,1774099833319,-250.0,0.00015199,2]
[408668122,1774099833329,-151.0,0.00015199,2]
[408668123,1774099833339,-250.0,0.00015199,2]
[408668124,1774099833348,-250.0,0.00015199,2]
[408668125,1774099833357,-250.0,0.00015199,2]
[408668126,1774099833367,-335.32119913,0.00015199,2]
[408668127,1774099833376,-250.0,0.00015199,2]
[408668128,1774099833386,-250.0,0.00015199,2]
[408668129,1774099833396,-250.0,0.00015199,2]
[408668130,1774099833405,-250.0,0.00015199,2]
[408668131,1774099833415,-250.0,0.00015199,2]
[408668132,1774099833424,-250.0,0.00015199,2]
[408668133,1774099833434,-250.0,0.00015199,2]
[408668134,1774099833443,-250.0,0.00015199,2]
[408668135,1774099833452,-250.0,0.00015199,2]
[408668136,1774099833462,-500.0,0.000152,2]
[408668137,1774099833471,-700.0,0.00015219,2]
[408668138,1774099833481,-500.0,0.00015254,2]
[408668139,1774099833490,-151.0,0.00015254,2]
[408668140,1774099833500,-254.77832288,0.00015278,2]
[408668141,1774099833510,-500.0,0.00015309,2]
[408668142,1774099833519,-151.0,0.00015309,2]
[408668143,1774099833531,-254.77832288,0.00015433,2]
[408668144,1774099833540,-966.08,0.000155,2]
[408668145,1774099833550,-215.591139,0.00015579,7]
[408668146,1774099833559,-172.472911,0.00015579,7]
[408668147,1774099833570,-254.77832288,0.00015589,2]
[408668148,1774099833579,-268.0,0.00015657,2]
[408668149,1774099833589,-309.208988,0.0001568,7]
[408668150,1774099833599,-351.400144,0.0001568,7]
[408668151,1774099833608,-168.824524,0.0001568,7]
[408668152,1774099833618,-979.16666667,0.00015728,2]
[408668153,1774099833628,-160.0,0.00015728,2]
[408668154,1774099833637,-350.0,0.00015734,2]
[408668155,1774099833647,-1158.78,0.00015735,2]
[408668156,1774099833657,-254.77832288,0.00015744,2]
[408668157,1774099833666,-9859.71,0.00015745,2]
[408668158,1774099833676,-1000.0,0.00015748,2]
[408668159,1774099833685,-1134.764,0.00015767,2]
[408668160,1774099833695,-5000.0,0.00015797,2]
[408668161,1774099833704,-2500.0,0.00015797,2]
[408668162,1774099833714,-268.0,0.00015805,2]
[408668163,1774099833724,-168.0,0.0001582,2]
[408668164,1774099833734,-168.0,0.00015825,2]
[408668165,1774099833744,-150.0,0.00015841,7]
[408668166,1774099833753,-500.0,0.00015873,2]
[408668167,1774099833763,-500.0,0.00015873,2]
[408668168,1774099833773,-500.0,0.00015873,2]
[408668169,1774099833783,-500.0,0.00015873,2]
[408668170,1774099833792,-163.4894394,0.00015873,2]
[408668171,1774099833802,-502.82851011,0.00015873,2]
[408668172,1774099833811,-503.22543564,0.00015873,2]
[408668173,1774099833821,-500.0,0.00015873,2]
[408668174,1774099833830,-2000.0,0.0001589,2]
[408668175,1774099833840,-500.0,0.00015896,2]
[408668176,1774099833849,-626.39795254,0.00015896,2]
[408668177,1774099833859,-500.0,0.00015896,2]
[408668178,1774099833868,-500.0,0.00015896,2]
[408668179,1774099833877,-500.0,0.00015896,2]
[408668180,1774099833889,-500.0,0.00015896,2]
[408668181,1774099833899,-500.0,0.00015896,2]
[408668182,1774099833909,-500.0,0.00015896,2]
[408668183,1774099833919,-500.0,0.00015896,2]
[408668184,1774099833930,-595.20614214,0.00015896,2]
[408668185,1774099833939,-500.0,0.00015896,2]
[408668186,1774099833950,-500.0,0.00015896,2]
[408668187,1774099833961,-500.0,0.00015896,2]
[408668188,1774099833971,-500.0,0.00015896,2]
[408668189,1774099833981,-500.0,0.00015896,2]
[408668190,1774099833990,-260.0548822,0.00015896,2]
[408668191,1774099834000,-214.61725938,0.00015896,2]
[408668192,1774099834010,-500.0,0.00015896,2]
[408668193,1774099834019,-500.0,0.00015896,2]
[408668194,1774099834028,-500.0,0.00015896,2]
[408668195,1774099834037,-500.0,0.00015896,2]
[408668196,1774099834046,-366068.48286018,0.00015897,2]
[408668197,1774099834061,-3605.29728063,0.00015897,2]
[408668198,1774099834076,-1581.17296328,0.00015897,2]
[408668199,1774099834087,-1068.15,0.00015897,2]
[408668200,1774099834098,-664.78715422,0.00015897,2]
[408668201,1774099834109,-749.6440699,0.00015897,2]
[408668203,1774099837679,-166.42049702,0.000151,2]
[408668204,1774099837689,-5867.7484207,0.00015897,2]
[408668205,1774099837701,-1364.2629872,0.00015897,2]
[408668206,1774099837738,-935.75564493,0.00015897,2]
[408668207,1774099837749,-11979.75265951,0.00015897,2]
[408668208,1774099837844,-151.84762586,0.00015797,2]
[408668209,1774099837858,-1047.59664296,0.00015897,2]
[408668210,1774099837870,-815.91901641,0.00015897,2]
[408668211,1774099837883,-397.58069885,0.00015897,2]
[408668249,1774099839895,-856331.74180123,0.00015897,2]
[408668250,1774099839905,-80822.0479,0.00015897,2]
[408668251,1774099839916,-3328.0059121,0.000159,3]
[408668252,1774099839927,-366.4469759,0.000159,2]
[408668253,1774099839936,-254.77832288,0.000159,2]
[408668254,1774099839946,-348.1590763,0.000159,2]
[408668255,1774099839956,-1750.0,0.000159,5]
[408668256,1774099839966,-1401.0,0.000159,5]
[408668257,1774099839976,-268.0,0.00015937,2]
[408668258,1774099839985,-168.0,0.00015949,2]
[408668259,1774099839995,-153294.6966435,0.00015953,2]
[408668260,1774099840006,-2760.1462191,0.00015953,2]
[408668261,1774099840017,-41836.7637542,0.00015953,2]
[408668262,1774099840027,-1338.413531,0.00015953,2]
[408668263,1774099840038,-956.9817086,0.00015953,2]
[408668264,1774099840048,-268.0,0.00015968,2]
[408668265,1774099840058,-569.27962609,0.00015973,2]
[408668266,1774099840069,-500.56236053,0.00015973,2]
[408668267,1774099840079,-500.84837608,0.00015973,2]
[408668268,1774099840090,-568.73940458,0.00015973,2]
[408668269,1774099840100,-500.0,0.00015973,2]
[408668270,1774099840109,-500.0,0.00015973,2]
[408668271,1774099840119,-154.98371835,0.00015995,2]
[408668272,1774099840129,-168.0,0.00015998,2]
[408668273,1774099840139,-52335.4697843,0.00015998,2]
[408668274,1774099840149,-3340.1922648,0.00015998,2]
[408668275,1774099840159,-13670.0076189,0.00015998,2]
[408668276,1774099840168,-1427490.08901023,0.00016,2]
[408668277,1774099840179,-151.72818223,0.00016,2]
[408668278,1774099840189,-500.0,0.00016,2]
[408668279,1774099840198,-500.0,0.00016,2]
[408668280,1774099840208,-500.0,0.00016,2]
[408668281,1774099840218,-500.0,0.00016,2]
[408668282,1774099840227,-500.0,0.00016,2]
[408668283,1774099840237,-500.0,0.00016,2]
[408668284,1774099840247,-500.0,0.00016,2]
[408668285,1774099840257,-500.0,0.00016,2]
[408668286,1774099840267,-503.7,0.00016,2]
[408668287,1774099840276,-466.72,0.00016,2]
[408668288,1774099840286,-286.49,0.00016,2]
[408668289,1774099840295,-635.97,0.00016,2]
[408668290,1774099840305,-1044.05,0.00016,2]
[408668291,1774099840314,-150.0,0.00016,2]
[408668292,1774099840323,-170.66669499,0.00016,2]
[408668293,1774099840333,-150.0,0.00016,2]
[408668294,1774099840343,-11957.24627584,0.00016,2]
[408668295,1774099840352,-174.19,0.00016,2]
[408668296,1774099840362,-1000.0,0.00016,2]
[408668297,1774099840371,-1000.0,0.00016,2]
[408668298,1774099840381,-1000.0,0.00016,2]
[408668299,1774099840390,-1000.0,0.00016,2]
[408668300,1774099840400,-1000.0,0.00016,2]
[408668302,1774099840410,-1000.0,0.00016,2]
[408668303,1774099840419,-1000.0,0.00016,2]
[408668304,1774099840428,-1000.0,0.00016,2]
[408668305,1774099840438,-1000.0,0.00016,2]
[408668306,1774099840447,-1000.0,0.00016,2]
[408668307,1774099840457,-1000.0,0.00016,2]
[408668308,1774099840466,-1000.0,0.00016,2]
[408668309,1774099840475,-1000.0,0.00016,2]
[408668310,1774099840485,-319.0,0.00016,2]
[408668311,1774099840495,-1162556.53757443,0.00016,2]
[408668312,1774099840516,-166.42049702,0.000159,2]
[408668313,1774099840525,-134668.09936282,0.00016,2]
[408668314,1774099840541,-292.58953676,0.00016,2]
[408668315,1774099840553,-9418.76017223,0.00016,2]
[408668316,1774099840579,-584.45210113,0.00016,2]
[408668323,1774099842686,-7470.05577332,0.00016,2]
[408668324,1774099842747,-151.84762586,0.00015849,2]
[408668325,1774099842757,-822.89679452,0.00016,2]
[408668326,1774099842789,-106428.30595935,0.00016,2]
[408668327,1774099842914,-869.28562631,0.00016,2]
[408668328,1774099842925,-10560.53160195,0.00016,2]
[408668329,1774099842937,-314.33202855,0.00016,2]
[408668330,1774099842949,-303.25529,0.00016,2]
[408668331,1774099842960,-491.05354543,0.00016,2]
[408668343,1774099845747,-11578.40281616,0.00016,2]
[408668344,1774099845760,-60585.51462342,0.00016,2]
[408668345,1774099845771,-10858.51457987,0.00016,2]
[408668346,1774099845793,-585.12667376,0.00016,2]
[408668347,1774099845808,-1390.0,0.00016,2]
[408668348,1774099845905,-11783.7123,0.00016,2]
[408668359,1774100138851,-500.0,0.000108,2]
[408668360,1774100138878,-500.0,0.000108,2]
[408668361,1774100337742,10000.0,0.00012575,10]
[408668362,1774100364747,997.91,0.00012575,10]
[408668363,1774100444391,4265.0,0.00012575,10]
[408668369,1774100837222,-170.68,0.00011873,2]
[408668370,1774100837249,-269.0,0.00014356,2]
[408668371,1774100837274,-500.0,0.00014356,2]
[408668372,1774100837297,-500.0,0.00014356,2]
[408668373,1774100837319,-1852.42,0.00014834,2]
[408668374,1774100837340,-395.0,0.00014846,2]
[408668375,1774100837362,-300.0,0.00014846,2]
[408668376,1774100837382,-2268.52077466,0.00014847,2]
[408668377,1774101031861,-500.0,0.00014356,2]
[408668378,1774101031871,-500.0,0.00014356,2]
[408668379,1774101031881,-1928.700481,0.00014847,2]
[408668380,1774101031893,-911.72705474,0.00014847,2]
[408668381,1774101031909,-319.20492,0.00014847,2]
[408668382,1774101031922,-1217.13613072,0.00014847,2]
[408668383,1774101031938,-1672.70963398,0.00014847,2]
[408668384,1774101032013,-11386.8710049,0.00014847,2]
[408668385,1774101032023,-168.0,0.00015117,2]
[408668386,1774101032033,-200.0,0.00015128,2]
[408668387,1774101032043,-168.0,0.00015376,2]
[408668388,1774101032053,-168.0,0.00015382,2]
[408668389,1774101032064,-822.61,0.00015507,2]
[408668390,1774101032074,-2758.76,0.00015507,2]
[408668391,1774101032084,-171.11,0.00015578,2]
[408668392,1774101032093,-5633.54466667,0.000157,2]
[408668393,1774101032105,-454.02947525,0.000157,2]
[408668394,1774101032118,-439.33223209,0.000157,2]
[408668395,1774101032128,-267.15776791,0.00015729,2]
[408668397,1774101038062,-712.00889876,0.00015729,2]
[408668398,1774101038072,-1039.4415,0.00015799,2]
[408668399,1774101038085,-2500.0,0.00015799,2]
[408668400,1774101038106,-1951.7484,0.00015799,2]
[408668401,1774101038117,-2561.2311448,0.00015799,2]
[408668402,1774101038127,-254.77832288,0.00015799,2]
[408668403,1774101038137,-5000.0,0.000158,2]
[408668404,1774101038147,-2561.23114474,0.0001581,2]
[408668405,1774101038156,-2561.23114474,0.00015821,2]
[408668406,1774101038166,-327.01616067,0.00015833,2]
[408668408,1774101038199,-2234.21498407,0.00015833,2]
[408668409,1774101038208,-907.811,0.00015833,2]
[408668410,1774101038218,-2561.23114474,0.00015844,2]
[408668411,1774101038227,-2561.23114474,0.00015855,2]
[408668412,1774101038237,-2561.23114474,0.00015866,2]
[408668413,1774101038246,-500.60325695,0.00015873,2]
[408668414,1774101038256,-587.46593813,0.00015873,2]
[408668415,1774101038266,-2561.23114474,0.00015878,2]
[408668416,1774101038278,-2561.23114474,0.00015889,2]
[408668417,1774101038288,-822.61,0.00015895,2]
[408668418,1774101038298,-500.0,0.00015898,2]
[408668419,1774101038307,-500.0,0.00015898,2]
[408668420,1774101038319,-500.0,0.00015898,2]
[408668421,1774101038329,-500.0,0.00015898,2]
[408668422,1774101038340,-500.0,0.00015898,2]
[408668423,1774101038349,-500.0,0.00015898,2]
[408668424,1774101038361,-500.0,0.00015898,2]
[408668425,1774101038371,-500.0,0.00015898,2]
[408668426,1774101038381,-500.0,0.00015898,2]
[408668427,1774101038391,-500.0,0.00015898,2]
[408668428,1774101038401,-500.0,0.00015898,2]
[408668429,1774101038410,-500.0,0.00015898,2]
[408668430,1774101038419,-500.0,0.00015898,2]
[408668431,1774101038428,-500.0,0.00015898,2]
[408668439,1774101038635,-500.0,0.00015898,2]
[408668442,1774101038651,-500.0,0.00015898,2]
[408668444,1774101038661,-500.0,0.00015898,2]
[408668446,1774101038670,-500.0,0.00015898,2]
[408668448,1774101038679,-500.0,0.00015898,2]
[408668449,1774101038688,-500.0,0.00015898,2]
[408668451,1774101038698,-500.0,0.00015898,2]
[408668453,1774101038707,-500.0,0.00015898,2]
[408668456,1774101038717,-500.0,0.00015898,2]
[408668458,1774101038726,-500.0,0.00015898,2]
[408668460,1774101038736,-500.0,0.00015898,2]
[408668462,1774101038746,-500.0,0.00015898,2]
[408668464,1774101038756,-500.0,0.00015898,2]
[408668466,1774101038766,-500.0,0.00015898,2]
[408668468,1774101038775,-230.85943778,0.00015898,2]
[408668470,1774101038784,-1013.93,0.00015898,2]
[408668472,1774101038793,-471544.50556997,0.00015899,2]
[408668475,1774101038805,-640.14698549,0.00015899,2]
[408668477,1774101038816,-29034.75933251,0.00015899,2]
[408668490,1774101038936,-695.06897491,0.00015899,2]
[408668493,1774101038948,-469.10245822,0.00015899,2]
[408668496,1774101038970,-399.89923816,0.00015899,2]
[408668498,1774101038981,-5753.47089063,0.00015899,2]
[408668586,1774101040106,-2061.25384475,0.00015899,2]
[408668588,1774101040117,-130596.59070536,0.00015899,2]
[408668590,1774101040126,-309.54752833,0.00015899,2]
[408668592,1774101040135,-500.0,0.00015899,2]
[408668594,1774101040145,-500.0,0.00015899,2]
[408668596,1774101040155,-382.03841754,0.00015899,2]
[408668598,1774101040164,-630.64961628,0.00015899,2]
[408668600,1774101040177,-500.0,0.00015899,2]
[408668602,1774101040187,-179.81685588,0.000159,2]
[408668604,1774101040196,-1010445.5269,0.000159,2]
[408668606,1774101040205,-3328.0059121,0.000159,3]
[408668608,1774101040214,-2561.23114474,0.000159,2]
[408668610,1774101040223,-348.1590763,0.000159,2]
[408668612,1774101040232,-1262.94609002,0.000159,2]
[408668615,1774101040241,-210.47643994,0.000159,2]
[408668617,1774101040251,-289.64454012,0.000159,2]
[408668618,1774101040260,-1727.0,0.000159,5]
[408668620,1774101040273,-224.0,0.00015951,2]
[408668622,1774101040283,-4085.0,0.00015973,2]
[408668624,1774101040292,-500.56236053,0.00015973,2]
[408668626,1774101040302,-500.84837608,0.00015973,2]
[408668628,1774101040312,-569.27962609,0.00015973,2]
[408668630,1774101040322,-568.73940458,0.00015973,2]
[408668632,1774101040331,-500.0,0.00015973,2]
[408668635,1774101040343,-500.0,0.00015973,2]
[408668637,1774101040352,-500.0,0.00015973,2]
[408668639,1774101040362,-521.0168606,0.0001599,2]
[408668640,1774101040371,-956.9817086,0.00015997,2]
[408668642,1774101040381,-154346.1503445,0.00015997,2]
[408668645,1774101040390,-14151.7700886,0.00015997,2]
[408668647,1774101040400,-2760.1462191,0.00015997,2]
[408668648,1774101040409,-32866.8375421,0.00015997,2]
[408668650,1774101040418,-166.2983806,0.00015997,2]
[408668652,1774101040427,-1123.0,0.00016,5]
[408668654,1774101040436,-1535591.59889694,0.00016,2]
[408668658,1774101040464,-51752.12410793,0.00016,2]
[408668660,1774101040475,-34805.69005842,0.00016,2]
[408668665,1774101040506,-89642.60018232,0.00016,2]
[408668667,1774101040517,-292.47011778,0.00016,2]
[408668711,1774101043162,-6628.70809986,0.00016,2]
[408668722,1774101045827,-1194.67247834,0.00016,2]
[408668723,1774101045838,-621.56070425,0.00016,2]
[408668725,1774101045884,-503.0,0.00016,2]
[408668736,1774101828232,-1337.58151292,0.00047244,120]
[408668737,1774101828267,-5000.0,0.00047244,120]
[408668738,1774101828303,-5000.0,0.00047244,120]
[408668739,1774101828334,-5000.0,0.00047244,120]
[408668740,1774101828367,-5000.0,0.00047244,120]
[408668741,1774101828403,-5000.0,0.00047244,120]
[408668742,1774101828437,-5000.0,0.00047244,120]
[408668743,1774101828470,-400.0,0.00047244,120]
[408668744,1774101828503,-628.0,0.00047244,30]
[408668745,1774101828540,-628.0,0.00047244,120]
[408668746,1774101828575,-1885.0,0.00047244,30]
[408668747,1774101828611,-1885.0,0.00047244,120]
[408668748,1774101828645,-325.84965392,0.00047244,120]
[408668749,1774101828672,-500.0,0.00047244,120]
[408668750,1774101828704,-306.57051433,0.00047244,120]
[408668751,1774101828731,-588.05297042,0.00047244,60]
[408668752,1774101828767,-1000.0,0.00047244,31]
[408668753,1774101828802,-1000.0,0.00047244,31]
[408668754,1774101828831,-1000.0,0.00047244,31]
[408668755,1774101828860,-1000.0,0.00047244,31]
[408668756,1774101828890,-1000.0,0.00047244,31]
[408668757,1774101828920,-1000.0,0.00047244,31]
[408668758,1774101828948,-1000.0,0.00047244,31]
[408668759,1774101828976,-1000.0,0.00047244,31]
[408668760,1774101829006,-1000.0,0.00047244,31]
[408668761,1774101829035,-159.73460327,0.00047244,30]
[408668762,1774101829063,-181.87583695,0.00047244,120]
[408668763,1774101829093,-199.18176067,0.00047244,120]
[408668764,1774101829123,-188.00575387,0.00047244,30]
[408668765,1774101829154,-174.52980849,0.00047244,60]
[408668766,1774101829185,-197.85284139,0.00047244,60]
[408668767,1774101829215,-2361.48817601,0.00047244,30]
[408668768,1774101829246,-151.20067154,0.00047244,30]
[408668769,1774101829275,-171.05976005,0.00047244,60]
[408668770,1774101829306,-2330.0,0.00047244,30]
[408668771,1774101829336,-200.0,0.00047244,120]
[408668772,1774101829365,-168.31041026,0.00047244,30]
[408668773,1774101829411,-390.1558144,0.00047244,120]
[408668774,1774101829452,-159.65336557,0.00047244,30]
[408668775,1774101829487,-177.22939446,0.00047244,120]
[408668776,1774101829523,-2945.55281765,0.00047244,30]
[408668777,1774101829556,-191.88768058,0.00047244,30]
[408668778,1774101829593,-1830.52182242,0.00047244,120]
[408668779,1774101829627,-157.68074574,0.00047244,120]
[408668780,1774101829654,-155.81336324,0.00047244,120]
[408668781,1774101829680,-901.63359869,0.00047244,120]
[408668782,1774101829703,-2107.4109086,0.00047244,35]
[408668783,1774101829726,-835.66838832,0.00047244,120]
[408668784,1774101830058,-2222.00048928,0.00047244,120]
[408668785,1774101830081,-176.80433886,0.00047244,120]
[408668786,1774101830103,-2228.72584698,0.00047244,120]
[408668787,1774101830125,-2016315.43434408,0.00047244,90]
[408668788,1774101830149,-325.61160455,0.00047244,30]
[408668789,1774101830171,-1037.31214869,0.00047244,120]
[408668790,1774101830192,-549.0,0.00047244,30]
[408668791,1774101830214,-1806.38572049,0.00047244,120]
[408668792,1774101830237,-700.0,0.00047244,120]
[408668793,1774101830258,-12727.69241346,0.00047244,30]
[408668794,1774101830285,-1000.0,0.00047244,30]
[408668795,1774101830308,-1110249.36242614,0.00047244,30]
[408668796,1774101830332,-200589.68096168,0.00047244,30]
[408668797,1774101830355,-189502.18835997,0.00047244,30]
[408668798,1774101830378,-24197.72949129,0.00047244,120]
[408668799,1774101830403,-5000.0,0.00047244,30]
[408668800,1774101830429,-5000.0,0.00047244,30]
[408668801,1774101830453,-4892.0,0.00047244,30]
[408668802,1774101830477,-5000.0,0.00047244,120]
[408668803,1774101830502,-5000.0,0.00047244,120]
[408668804,1774101830530,-4892.0,0.00047244,120]
[408668805,1774101830555,-558.84512183,0.00047244,120]
[408668806,1774101830581,-50000.0,0.00047244,30]
[408668807,1774101830605,-220.17,0.00047244,120]
[408668808,1774101830631,-265.0,0.00047244,120]
[408668809,1774101830656,-768.52360171,0.00047244,120]
[408668810,1774101830681,-460.99775896,0.00047244,30]
[408668811,1774101830707,-500.0,0.00047244,30]
[408668812,1774101830730,-500.0,0.00047244,30]
[408668813,1774101830756,-500.0,0.00047244,30]
[408668814,1774101830780,-500.0,0.00047244,30]
[408668815,1774101830807,-500.0,0.00047244,30]
[408668816,1774101830833,-500.0,0.00047244,30]
[408668817,1774101830856,-500.0,0.00047244,30]
[408668818,1774101830880,-500.0,0.00047244,30]
[408668819,1774101830903,-528.71530408,0.00047244,30]
[408668820,1774101830926,-585.41991533,0.00047244,120]
[408668821,1774101830949,-500.0,0.00047244,120]
[408668822,1774101830973,-500.0,0.00047244,120]
[408668823,1774101830996,-500.0,0.00047244,120]
[408668824,1774101831019,-500.0,0.00047244,120]
[408668825,1774101831042,-633.08469843,0.00047244,120]
[408668826,1774101831074,-500.0,0.00047244,120]
[408668827,1774101831104,-500.0,0.00047244,120]
[408668828,1774101831128,-500.0,0.00047244,120]
[408668829,1774101831153,-500.0,0.00047244,120]
[408668830,1774101831178,-500.0,0.00047244,120]
[408668831,1774101831203,-500.0,0.00047244,120]
[408668832,1774101831227,-500.0,0.00047244,120]
[408668833,1774101831251,-500.0,0.00047244,120]
[408668834,1774101831275,-500.0,0.00047244,120]
[408668835,1774101831300,-500.0,0.00047244,120]
[408668836,1774101831324,-500.0,0.00047244,120]
[408668837,1774101831348,-172.4021395,0.00047244,120]
[408668838,1774101831372,-500.0,0.00047244,120]
[408668839,1774101831402,-423.42418772,0.00047244,120]
[408668840,1774101831427,-179.93859306,0.00047244,120]
[408668841,1774101831451,-198.00520258,0.00047244,120]
[408668842,1774101831476,-153.31384411,0.00047244,120]
[408668843,1774101831501,-314.78990046,0.00047244,120]
[408668844,1774101831525,-169.58954809,0.00047244,30]
[408668845,1774101831549,-7371.1961025,0.00047244,120]
[408668846,1774101831583,-209.14798528,0.00047244,30]
[408668847,1774101831609,-293.50902187,0.00047244,120]
[408668848,1774101831639,-166.20846948,0.00047244,120]
[408668849,1774101831666,-500.0,0.00047244,120]
[408668850,1774101831691,-170.83393151,0.00047244,120]
[408668851,1774101831716,-188.74573591,0.00047244,120]
[408668852,1774101831748,-157.84423101,0.00047244,120]
[408668853,1774101831787,-180.17270516,0.00047244,120]
[408668854,1774101831813,-398.50981059,0.00047244,120]
[408668855,1774101831838,-247.96453265,0.00047244,120]
[408668856,1774101831867,-185.31799685,0.00047244,120]
[408668857,1774101831893,-271.11597087,0.00047244,120]
[408668858,1774101831917,-247.22233476,0.00047244,120]
[408668859,1774101831941,-161.44786369,0.00047244,120]
[408668860,1774101831967,-161.35191475,0.00047244,120]
[408668861,1774101831992,-159.65819196,0.00047244,120]
[408668862,1774101832017,-316.21515074,0.00047244,120]
[408668863,1774101832042,-151.74789874,0.00047244,120]
[408668864,1774101832069,-161.32443685,0.00047244,120]
[408668865,1774101832093,-253.56508521,0.00047244,120]
[408668866,1774101832123,-209.41980593,0.00047244,120]
[408668867,1774101832147,-159.22153737,0.00047244,120]
[408668868,1774101832170,-556.88498468,0.00047244,120]
[408668869,1774101832193,-169.30746529,0.00047244,120]
[408668870,1774101832217,-227.68635274,0.00047244,120]
[408668871,1774101832241,-336.4058286,0.00047244,120]
[408668872,1774101832265,-553.15190978,0.00047244,120]
[408668873,1774101832289,-262.92299937,0.00047244,120]
[408668874,1774101832312,-154.44991104,0.00047244,120]
[408668875,1774101832504,-154.07762281,0.00047244,120]
[408668876,1774101832527,-173.84098909,0.00047244,120]
[408668877,1774101832550,-259.48360059,0.00047244,120]
[408668878,1774101832574,-599.9851873,0.00047244,120]
[408668879,1774101832602,-278.44342152,0.00047244,120]
[408668880,1774101832627,-156.23679525,0.00047244,120]
[408668881,1774101832651,-617.56222872,0.00047244,120]
[408668882,1774101832679,-268.64035285,0.00047244,120]
[408668883,1774101832702,-183.05690594,0.00047244,120]
[408668884,1774101832725,-168.95712616,0.00047244,120]
[408668885,1774101832748,-500.0,0.00047244,120]
[408668886,1774101832771,-217.79911844,0.00047244,120]
[408668887,1774101832794,-161.01793882,0.00047244,120]
[408668888,1774101832818,-231.34829611,0.00047244,120]
[408668889,1774101832842,-161.71260611,0.00047244,120]
[408668890,1774101832865,-183.72350983,0.00047244,120]
[408668891,1774101832888,-500.0,0.00047244,120]
[408668892,1774101832912,-167.82676239,0.00047244,120]
[408668893,1774101832935,-163.65290191,0.00047244,120]
[408668894,1774101832957,-295.59109051,0.00047244,120]
[408668895,1774101832980,-410.99293828,0.00047244,120]
[408668896,1774101833002,-150.69788883,0.00047244,120]
[408668897,1774101833025,-237.42661678,0.00047244,120]
[408668898,1774101833048,-500.0,0.00047244,120]
[408668899,1774101833072,-319.61032156,0.00047244,120]
[408668900,1774101833096,-514.2369,0.00047244,120]
[408668901,1774101833122,-500.0,0.00047244,120]
[408668902,1774101833145,-162.2784842,0.00047244,120]
[408668903,1774101833170,-500.0,0.00047244,120]
[408668904,1774101833195,-623.01483658,0.00047244,120]
[408668905,1774101833220,-304.99389244,0.00047244,120]
[408668906,1774101833245,-155.72597942,0.00047244,120]
[408668907,1774101833270,-223.86820095,0.00047244,120]
[408668908,1774101833295,-282.16272247,0.00047244,120]
[408668909,1774101833319,-317.61626661,0.00047244,120]
[408668910,1774101833343,-217.20764611,0.00047244,120]
[408668911,1774101833368,-178.87194619,0.00047244,120]
[408668912,1774101833392,-236.00813376,0.00047244,120]
[408668913,1774101833418,-172.94327423,0.00047244,120]
[408668914,1774101833441,-345.56350609,0.00047244,120]
[408668915,1774101833466,-341.06961734,0.00047244,120]
[408668916,1774101833489,-160.2923643,0.00047244,120]
[408668917,1774101833513,-382.93639388,0.00047244,120]
[408668918,1774101833537,-161.89820473,0.00047244,120]
[408668919,1774101833562,-156.45773579,0.00047244,120]